fUSD/lending_fUSD_20251112
["ID","MTS","AMOUNT","RATE_DAILY","PERIOD"]
[393724288,1762953044144,-597.93,0.00037009,120]
[393724289,1762953044154,-597.93,0.00037009,120]
[393724290,1762953044164,-597.93,0.00037009,120]
[393724291,1762953044174,-597.93,0.00037009,120]
[393724292,1762953044184,-597.93,0.00037009,120]
[393724293,1762953044194,-597.93,0.00037009,120]
[393724294,1762953044204,-4716600.96609926,0.0003701,120]
[393724295,1762953044454,-597.93,0.00037009,120]
[393724296,1762953044464,-681.41989116,0.0003701,120]
[393724548,1762953424706,300.0,0.0003,120]
[393724549,1762953503215,1300.0,0.0003,120]
[393724550,1762953509575,-400.0,0.00031,120]
[393724553,1762953741132,603.41,0.0003013,120]
[393724554,1762953908332,10000.01,0.00018,2]
[393724555,1762953908357,10000.01,0.00018,2]
[393724556,1762953908382,10000.01,0.00018,2]
[393724557,1762953908406,10000.01,0.00018,2]
[393724558,1762953908430,10000.01,0.00018,2]
[393724559,1762953908454,10000.01,0.00018,2]
[393724560,1762953908480,10000.01,0.00018,2]
[393724561,1762953908505,10000.01,0.00018,2]
[393724562,1762953908530,10000.01,0.00018,2]
[393724563,1762953908554,10000.01,0.00018,2]
[393724564,1762953908580,10000.01,0.00018,2]
[393724565,1762953908607,10000.01,0.00018,2]
[393724566,1762953908633,10000.01,0.00018,2]
[393724567,1762953908657,10000.01,0.00018,2]
[393724568,1762953908682,10000.01,0.00018,2]
[393724569,1762953908707,50000.0,0.00018,2]
[393724570,1762953909868,-164.88240054,0.00018,2]
[393724571,1762953921016,-254.60310708,0.00018,2]
[393724572,1762953922661,-2227.09740148,0.00018,2]
[393724573,1762953923662,1542.0,0.00030136,120]
[393724574,1762953924869,-272.90389243,0.00018,2]
[393724575,1762953929274,-451.47332162,0.00018,2]
[393724577,1762953933166,-195.23,0.00018,2]
[393724578,1762953936159,-163.59762373,0.00018,2]
[393724579,1762953962722,-160.0,0.00018,2]
[393724583,1762954071149,10000.01,0.00015,2]
[393724584,1762954071173,10000.01,0.00015,2]
[393724585,1762954071197,10000.01,0.00015,2]
[393724586,1762954071220,10000.01,0.00015,2]
[393724587,1762954071245,10000.01,0.00015,2]
[393724588,1762954071268,10000.01,0.00015,2]
[393724589,1762954071291,10000.01,0.00015,2]
[393724590,1762954071314,10000.01,0.00015,2]
[393724591,1762954071338,10000.01,0.00015,2]
[393724592,1762954071362,10000.01,0.00015,2]
[393724593,1762954071385,10000.01,0.00015,2]
[393724594,1762954071409,10000.01,0.00015,2]
[393724595,1762954071432,10000.01,0.00015,2]
[393724596,1762954071456,10000.01,0.00015,2]
[393724597,1762954071480,9400.01,0.00015,2]
[393724604,1762954153154,-1117.0,0.00017999,2]
[393724605,1762954153185,-4147.902804,0.00018,2]
[393724615,1762954231766,-300.0,0.00017999,2]
[393724616,1762954231776,-1200.0,0.00017999,2]
[393724617,1762954231786,-300.0,0.00017999,2]
[393724618,1762954231795,-87791.42381529,0.00018,2]
[393724619,1762954231807,-18470.07182407,0.00018,2]
[393724620,1762954231825,-67333.40769849,0.00018,2]
[393724621,1762954231835,-300.0,0.00019639,2]
[393724622,1762954231844,-1680.0,0.00019735,2]
[393724623,1762954231854,-250.0,0.00019799,2]
[393724624,1762954231864,-272.90389243,0.0002,20]
[393724625,1762954231873,-2481.70050856,0.0002,14]
[393724626,1762954231883,-230.0,0.00028469,5]
[393724627,1762954231892,-230.0,0.00028583,5]
[393724628,1762954231902,-230.0,0.00028697,5]
[393724629,1762954231911,-230.0,0.00028811,5]
[393724630,1762954231920,-250.0,0.00028925,5]
[393724631,1762954231930,-310.79747351,0.0003,2]
[393724632,1762954231939,-1745.88282958,0.0003,14]
[393724633,1762954231951,-614.11399316,0.0003013,2]
[393724634,1762954231960,-891.0,0.00031,120]
[393724635,1762954231970,-301.999999,0.00031,2]
[393724636,1762954231981,-1098.05342992,0.00031209,15]
[393724637,1762954231990,-476.11336772,0.0003121,2]
[393724638,1762954231999,-400.0,0.00031305,7]
[393724639,1762954232008,-1098.05342992,0.00031999,15]
[393724640,1762954232018,-300.0,0.00032,120]
[393724641,1762954232028,-3302.0,0.00032,120]
[393724642,1762954232037,-160.71,0.00032909,2]
[393724643,1762954232047,-200.0,0.00033,120]
[393724644,1762954232059,-300.0,0.00034,120]
[393724645,1762954232068,-152.0,0.00034969,3]
[393724648,1762954232078,-3312.86375072,0.00035,3]
[393724650,1762954232087,-300.0,0.00035,120]
[393724652,1762954232097,-900.0,0.00035,2]
[393724654,1762954232106,-150.0,0.00035082,2]
[393724656,1762954232115,-210.0,0.00035082,2]
[393724658,1762954232124,-150.0,0.00035582,2]
[393724659,1762954232136,-3323.31,0.000357,2]
[393724661,1762954232145,-500.0,0.000358,30]
[393724663,1762954232154,-151.0,0.00035834,2]
[393724664,1762954232163,-1616.56820201,0.00035834,2]
[393724665,1762954232172,-200.0,0.00035855,2]
[393724667,1762954232181,-1096.71089,0.00035888,30]
[393724670,1762954232191,-300.0,0.00036,120]
[393724672,1762954232200,-900.0,0.00036,3]
[393724673,1762954232209,-9915.1764494,0.00036,120]
[393724676,1762954232219,-1096.71089,0.00036088,30]
[393724677,1762954232228,-168.0,0.00036089,2]
[393724679,1762954232238,-153.0,0.00036146,120]
[393724681,1762954232247,-153.0,0.00036146,120]
[393724684,1762954232256,-153.0,0.00036146,120]
[393724685,1762954232265,-153.0,0.00036146,120]
[393724686,1762954232274,-153.0,0.00036146,120]
[393724687,1762954232283,-153.0,0.00036146,120]
[393724688,1762954232293,-153.0,0.00036146,120]
[393724689,1762954232302,-153.0,0.00036146,120]
[393724690,1762954232311,-153.0,0.00036146,120]
[393724691,1762954232320,-153.0,0.00036146,120]
[393724692,1762954232338,-153.0,0.00036146,120]
[393724693,1762954232349,-153.0,0.00036146,120]
[393724694,1762954232359,-153.0,0.00036146,120]
[393724695,1762954232369,-153.0,0.00036146,120]
[393724696,1762954232378,-153.0,0.00036146,120]
[393724697,1762954232389,-153.0,0.00036146,120]
[393724698,1762954232398,-153.0,0.00036146,120]
[393724699,1762954232409,-153.0,0.00036146,120]
[393724700,1762954232418,-153.0,0.00036146,120]
[393724701,1762954232428,-153.0,0.00036146,120]
[393724702,1762954232437,-153.0,0.00036146,120]
[393724703,1762954232447,-153.0,0.00036146,120]
[393724704,1762954232456,-153.0,0.00036146,120]
[393724705,1762954232466,-153.0,0.00036146,120]
[393724706,1762954232476,-153.0,0.00036146,120]
[393724707,1762954232485,-153.0,0.00036146,120]
[393724708,1762954232495,-153.0,0.00036146,120]
[393724709,1762954232504,-153.0,0.00036146,120]
[393724710,1762954232514,-153.0,0.00036146,120]
[393724711,1762954232524,-153.0,0.00036146,120]
[393724712,1762954232533,-153.0,0.00036146,120]
[393724713,1762954232543,-153.0,0.00036146,120]
[393724714,1762954232553,-132.40629824,0.00036146,120]
[393724715,1762954232871,-20.59370176,0.00036146,120]
[393724716,1762954232881,-153.0,0.00036146,120]
[393724717,1762954232890,-153.0,0.00036146,120]
[393724718,1762954232900,-153.0,0.00036146,120]
[393724719,1762954232909,-153.0,0.00036146,120]
[393724720,1762954232919,-153.0,0.00036146,120]
[393724721,1762954232929,-153.0,0.00036146,120]
[393724722,1762954232938,-153.0,0.00036146,120]
[393724723,1762954232947,-153.0,0.00036146,120]
[393724724,1762954232957,-153.0,0.00036146,120]
[393724725,1762954232967,-153.0,0.00036146,120]
[393724726,1762954232978,-153.0,0.00036146,120]
[393724727,1762954232991,-153.0,0.00036146,120]
[393724728,1762954233000,-153.0,0.00036146,120]
[393724729,1762954233010,-153.0,0.00036146,120]
[393724730,1762954233020,-214.08,0.0003618,2]
[393724731,1762954233030,-1096.71089,0.00036288,30]
[393724732,1762954233040,-153.0,0.00036381,120]
[393724733,1762954233049,-153.0,0.00036381,120]
[393724734,1762954233061,-156.587,0.00036382,2]
[393724735,1762954233071,-360.935045,0.000364,13]
[393724736,1762954233083,-239.064955,0.000364,13]
[393724737,1762954233092,-1096.71089,0.00036488,30]
[393724738,1762954233103,-1200.0,0.000365,13]
[393724739,1762954233112,-211.68024455,0.00036594,2]
[393724740,1762954233122,-1900.0,0.000366,13]
[393724741,1762954233132,-3332.07539816,0.0003664,2]
[393724742,1762954233142,-168.0,0.00036684,2]
[393724743,1762954233151,-1096.71089,0.00036688,30]
[393724744,1762954233160,-2500.0,0.000367,13]
[393724745,1762954233170,-3200.0,0.000368,13]
[393724746,1762954233179,-234.5545,0.0003681,2]
[393724747,1762954233193,-282.6623,0.0003681,2]
[393724748,1762954233202,-5085.27185729,0.0003681,2]
[393724749,1762954233220,-1028.18622246,0.0003681,2]
[393724750,1762954233233,-859.44395709,0.0003681,2]
[393724770,1762954237742,-153.0,0.00036146,120]
[393724771,1762954237752,-153.0,0.00036146,120]
[393724772,1762954237762,-153.0,0.00036146,120]
[393724773,1762954237772,-59.92264709,0.00036146,120]
[393724774,1762954237816,-93.07735291,0.00036146,120]
[393724775,1762954237826,-153.0,0.00036146,120]
[393724776,1762954237835,-153.0,0.00036146,120]
[393724777,1762954237844,-153.0,0.00036146,120]
[393724778,1762954237853,-153.0,0.00036146,120]
[393724779,1762954237863,-153.0,0.00036146,120]
[393724780,1762954237872,-153.0,0.00036146,120]
[393724781,1762954237882,-26188.74706316,0.0003681,2]
[393724782,1762954237891,-152.84383894,0.00036866,2]
[393724783,1762954237900,-152.84383894,0.00036874,2]
[393724784,1762954237910,-152.84383894,0.00036883,2]
[393724785,1762954237920,-500.0,0.00036888,2]
[393724786,1762954237929,-500.0,0.00036888,2]
[393724787,1762954237941,-151.0,0.00036888,2]
[393724788,1762954237956,-500.0,0.00036888,2]
[393724789,1762954237966,-151.0,0.00036888,2]
[393724790,1762954237975,-529.95219414,0.00036888,2]
[393724791,1762954237986,-151.0,0.00036888,2]
[393724792,1762954237995,-500.0,0.00036888,2]
[393724793,1762954238004,-151.0,0.00036888,2]
[393724794,1762954238014,-500.0,0.00036888,2]
[393724795,1762954238024,-151.0,0.00036888,2]
[393724796,1762954238033,-500.0,0.00036888,2]
[393724797,1762954238043,-151.0,0.00036888,2]
[393724798,1762954238054,-500.0,0.00036888,2]
[393724799,1762954238069,-151.0,0.00036888,2]
[393724800,1762954238078,-500.0,0.00036888,2]
[393724801,1762954238088,-151.0,0.00036888,2]
[393724802,1762954238098,-500.0,0.00036888,2]
[393724803,1762954238108,-151.0,0.00036888,2]
[393724804,1762954238117,-500.0,0.00036888,2]
[393724805,1762954238127,-151.0,0.00036888,2]
[393724806,1762954238138,-500.0,0.00036888,2]
[393724807,1762954238149,-151.0,0.00036888,2]
[393724808,1762954238159,-3655.7029,0.00036888,7]
[393724809,1762954238168,-1096.71089,0.00036888,30]
[393724810,1762954238178,-152.84383894,0.00036892,2]
[393724811,1762954238187,-316.76722412,0.00036899,2]
[393724812,1762954238197,-1098.05342992,0.00036899,30]
[393724813,1762954238206,-298.81263878,0.00036899,15]
[393724814,1762954238218,-340.00534089,0.00036899,15]
[393724815,1762954238228,-600.0,0.000369,13]
[393724816,1762954238238,-858.6813649,0.000369,4]
[393724817,1762954238249,-68281.0141391,0.000369,4]
[393724818,1762954238259,-152.84383894,0.00036901,2]
[393724819,1762954238268,-204.24,0.00036909,7]
[393724820,1762954238278,-256.164,0.00036909,46]
[393724821,1762954238288,-1098.05342992,0.00036909,30]
[393724822,1762954238297,-1098.05342991,0.00036909,30]
[393724823,1762954238307,-1098.05342992,0.00036909,30]
[393724824,1762954238316,-1098.05342992,0.00036909,30]
[393724825,1762954238326,-1098.05342992,0.00036909,30]
[393724826,1762954238337,-1098.05342992,0.00036909,30]
[393724827,1762954238347,-1098.05342992,0.00036909,30]
[393724828,1762954238357,-24044.30623614,0.00036909,40]
[393724829,1762954238366,-13933.15912519,0.0003691,2]
[393724830,1762954238376,-316.76722412,0.0003691,2]
[393724831,1762954238385,-170.27279702,0.0003691,2]
[393724832,1762954238395,-152.84383894,0.0003691,2]
[393724833,1762954238405,-318.81715428,0.0003691,2]
[393724834,1762954238414,-191.61593923,0.0003691,7]
[393724835,1762954238424,-164.48213506,0.0003691,2]
[393724836,1762954238433,-292.01543014,0.0003691,2]
[393724837,1762954238443,-420000.0,0.0003691,2]
[393724838,1762954238452,-198.0,0.0003691,30]
[393724839,1762954238462,-154.00686309,0.0003691,30]
[393724840,1762954238471,-161.08792869,0.0003691,30]
[393724841,1762954238480,-161.08792869,0.0003691,30]
[393724842,1762954238490,-161.08792869,0.0003691,30]
[393724843,1762954238500,-161.08792869,0.0003691,30]
[393724844,1762954238510,-161.08792869,0.0003691,30]
[393724845,1762954238519,-161.08792869,0.0003691,30]
[393724846,1762954238529,-161.08792869,0.0003691,30]
[393724847,1762954238539,-161.08792869,0.0003691,30]
[393724848,1762954238549,-161.08792869,0.0003691,30]
[393724849,1762954238558,-161.08792869,0.0003691,30]
[393724850,1762954238568,-161.08792869,0.0003691,30]
[393724851,1762954238577,-161.08792869,0.0003691,30]
[393724852,1762954238586,-161.08792869,0.0003691,30]
[393724853,1762954238596,-161.08792869,0.0003691,30]
[393724854,1762954238606,-161.08792869,0.0003691,30]
[393724855,1762954238615,-161.08792869,0.0003691,30]
[393724856,1762954238625,-161.08792869,0.0003691,30]
[393724857,1762954238635,-161.08792869,0.0003691,30]
[393724858,1762954238644,-161.08792869,0.0003691,30]
[393724859,1762954238653,-161.08,0.0003691,30]
[393724860,1762954238663,-375.87183361,0.0003691,30]
[393724861,1762954238672,-375.87183361,0.0003691,30]
[393724862,1762954238681,-375.87183361,0.0003691,30]
[393724863,1762954238690,-375.87183361,0.0003691,30]
[393724864,1762954238699,-375.87183361,0.0003691,30]
[393724865,1762954238709,-375.87183361,0.0003691,30]
[393724866,1762954238718,-375.87183361,0.0003691,30]
[393724867,1762954238728,-375.87183361,0.0003691,30]
[393724868,1762954238739,-375.87183361,0.0003691,30]
[393724869,1762954238749,-375.87183361,0.0003691,30]
[393724870,1762954238759,-375.87183361,0.0003691,30]
[393724871,1762954238769,-375.87183361,0.0003691,30]
[393724872,1762954238780,-254.79628459,0.0003691,30]
[393724873,1762954238790,-254.79628459,0.0003691,30]
[393724874,1762954238800,-254.79628459,0.0003691,30]
[393724875,1762954238810,-254.79628459,0.0003691,30]
[393724876,1762954238820,-254.79628459,0.0003691,30]
[393724877,1762954238830,-254.79628459,0.0003691,30]
[393724878,1762954238840,-254.79628459,0.0003691,30]
[393724879,1762954238850,-254.79628459,0.0003691,30]
[393724880,1762954238860,-254.79628459,0.0003691,30]
[393724881,1762954238870,-254.79628459,0.0003691,30]
[393724882,1762954238880,-254.79628459,0.0003691,30]
[393724883,1762954238890,-254.79628459,0.0003691,30]
[393724884,1762954238899,-254.79628459,0.0003691,30]
[393724885,1762954238910,-254.79628459,0.0003691,30]
[393724886,1762954238928,-254.79628459,0.0003691,30]
[393724887,1762954239140,-254.79628459,0.0003691,30]
[393724888,1762954239151,-254.79628459,0.0003691,30]
[393724889,1762954239161,-254.79628459,0.0003691,30]
[393724890,1762954239170,-254.79628459,0.0003691,30]
[393724891,1762954239182,-254.79,0.0003691,30]
[393724892,1762954239192,-594.52466404,0.0003691,30]
[393724893,1762954239202,-594.52466404,0.0003691,30]
[393724894,1762954239212,-594.52466404,0.0003691,30]
[393724895,1762954239222,-594.52466404,0.0003691,30]
[393724896,1762954239232,-594.52466404,0.0003691,30]
[393724897,1762954239243,-594.52466404,0.0003691,30]
[393724898,1762954239252,-594.52466404,0.0003691,30]
[393724899,1762954239262,-594.52466404,0.0003691,30]
[393724900,1762954239272,-594.52466404,0.0003691,30]
[393724901,1762954239281,-594.52466404,0.0003691,30]
[393724902,1762954239291,-594.52466404,0.0003691,30]
[393724903,1762954239301,-594.52466404,0.0003691,30]
[393724904,1762954239310,-211.68024456,0.00036916,2]
[393724905,1762954239320,-287.89748349,0.0003693,2]
[393724906,1762954239331,-648.03571,0.0003695,2]
[393724907,1762954239341,-1053.0,0.00036986,120]
[393724908,1762954239352,-1098.05342992,0.00036989,30]
[393724909,1762954239362,-4321.230969,0.0003699,4]
[393724910,1762954239372,-108030.774225,0.0003699,4]
[393724911,1762954239382,-1098.05342992,0.00036998,30]
[393724912,1762954239403,-21606.154845,0.00036999,4]
[393724913,1762954239414,-200.0,0.00037,120]
[393724914,1762954239423,-902.0,0.00037,4]
[393724915,1762954239434,-8795.65391261,0.00037,2]
[393724916,1762954239444,-163.32022425,0.00037,2]
[393724917,1762954239454,-30248.616783,0.00037,4]
[393724918,1762954239464,-150.31,0.00037,2]
[393724919,1762954239474,-150.31,0.00037,2]
[393724920,1762954239485,-663.86563797,0.00037,2]
[393724921,1762954239495,-663.86563797,0.00037,2]
[393724922,1762954239506,-663.86563797,0.00037,2]
[393724923,1762954239516,-2200.02,0.00037006,4]
[393724924,1762954239526,-1200.0,0.00037007,2]
[393724925,1762954239536,-1600.0,0.00037008,3]
[393724926,1762954239545,-2784.5942421,0.00037009,2]
[393724927,1762954239555,-500.0,0.00037009,120]
[393724928,1762954239566,-500.0,0.00037009,120]
[393724929,1762954239575,-196.04886383,0.00037009,120]
[393724930,1762954239585,-268.53945069,0.00037009,15]
[393724931,1762954239596,-1372.5667874,0.00037009,30]
[393724932,1762954239605,-1372.5667874,0.00037009,30]
[393724933,1762954239615,-28382.2296315,0.00037009,2]
[393724934,1762954239626,-3016.9261159,0.00037009,2]
[393724935,1762954239636,-1098.05342992,0.00037009,30]
[393724936,1762954239647,-648.03571,0.00037009,2]
[393724937,1762954239656,-227.82242357,0.00037009,15]
[393724939,1762954239666,-183.89362965,0.00037009,15]
[393724941,1762954239676,-3000.0,0.00037009,2]
[393724943,1762954239686,-3000.0,0.00037009,7]
[393724944,1762954239698,-2040.84662424,0.00037009,12]
[393724945,1762954239708,-999.0,0.00037009,120]
[393724946,1762954239718,-254701.14390063,0.0003701,120]
[393724947,1762954239728,-2059760.30973995,0.0003701,120]
[393724948,1762954240092,-368.03401181,0.0003701,120]
[393724951,1762954240109,-945.71657628,0.0003701,120]
[393724952,1762954240121,-506.09712146,0.0003701,120]
[393724953,1762954240133,-2102.5036363,0.0003701,120]
[393724955,1762954240250,-1047517.14581891,0.0003701,120]
[393724956,1762954240262,-14807.7647131,0.0003701,120]
[393724960,1762954242773,-1845975.95827324,0.0003701,120]
[393724961,1762954242783,-500.0,0.0003701,30]
[393724962,1762954242794,-3052.185601,0.0003701,2]
[393724963,1762954242803,-2163.6452476,0.0003701,2]
[393724964,1762954242814,-200.0,0.0003701,2]
[393724965,1762954242824,-300.454391,0.0003701,31]
[393724966,1762954242833,-151.0,0.0003701,31]
[393724967,1762954242844,-151.0,0.0003701,31]
[393724968,1762954242853,-159.002243,0.0003701,31]
[393724969,1762954242863,-151.661629,0.0003701,31]
[393724970,1762954242872,-151.0,0.0003701,31]
[393724971,1762954242881,-303.997773,0.0003701,31]
[393724972,1762954242891,-151.0,0.0003701,31]
[393724973,1762954242901,-303.997773,0.0003701,31]
[393724974,1762954242910,-303.997773,0.0003701,31]
[393724975,1762954242919,-303.997773,0.0003701,31]
[393724976,1762954242928,-151.0,0.0003701,31]
[393724977,1762954242938,-151.0,0.0003701,30]
[393724978,1762954242947,-151.0,0.0003701,31]
[393724979,1762954242956,-151.0,0.0003701,31]
[393724980,1762954242966,-151.0,0.0003701,31]
[393724981,1762954242976,-151.0,0.0003701,31]
[393724982,1762954242988,-151.000001,0.0003701,31]
[393724983,1762954242998,-151.0,0.0003701,31]
[393724984,1762954243008,-151.0,0.0003701,31]
[393724985,1762954243017,-151.0,0.0003701,31]
[393724986,1762954243027,-200.0,0.0003701,31]
[393724987,1762954243041,-151.0,0.0003701,31]
[393724989,1762954243050,-151.0,0.0003701,31]
[393724990,1762954243066,-200.0,0.0003701,31]
[393724991,1762954243076,-200.0,0.0003701,31]
[393724992,1762954243085,-200.0,0.0003701,31]
[393724993,1762954243095,-151.0,0.0003701,31]
[393724994,1762954243105,-151.0,0.0003701,30]
[393724995,1762954243114,-151.0,0.0003701,31]
[393724996,1762954243123,-151.0,0.0003701,31]
[393724997,1762954243133,-151.0,0.0003701,31]
[393724998,1762954243142,-200.0,0.0003701,2]
[393724999,1762954243152,-151.0,0.0003701,31]
[393725000,1762954243162,-171.302453,0.0003701,31]
[393725001,1762954243172,-157.327414,0.0003701,31]
[393725002,1762954243181,-185.167043,0.0003701,31]
[393725003,1762954243191,-1141.26008863,0.0003701,2]
[393725004,1762954243202,-1141.26008863,0.0003701,2]
[393725005,1762954243212,-168.0,0.00037034,2]
[393725006,1762954243223,-500.0,0.00037073,5]
[393725007,1762954243232,-500.0,0.00037073,5]
[393725008,1762954243244,-500.0,0.00037073,2]
[393725009,1762954243253,-1096.71089,0.00037088,30]
[393725010,1762954243264,-1516.85,0.000371,30]
[393725011,1762954243273,-8746.62,0.000371,2]
[393725012,1762954243283,-168.0,0.00037164,2]
[393725013,1762954243293,-195.28418553,0.000372,120]
[393725014,1762954243302,-375.87183361,0.00037233,30]
[393725015,1762954243311,-594.52466404,0.00037233,30]
[393725016,1762954243320,-168.0,0.00037255,7]
[393725017,1762954243330,-500.0,0.00037284,30]
[393725019,1762954243339,-1096.71089,0.00037288,30]
[393725020,1762954243349,-168.0,0.00037302,2]
[393725022,1762954243359,-154.00686309,0.00037367,30]
[393725023,1762954243368,-200.0,0.0003738,2]
[393725024,1762954243378,-648.03571,0.0003745,2]
[393725025,1762954243387,-500.0,0.00037455,30]
[393725027,1762954243397,-204.24,0.00037457,8]
[393725028,1762954243407,-1096.71089,0.00037488,30]
[393725029,1762954243416,-156.35,0.00037512,60]
[393725030,1762954243425,-156.35,0.00037512,60]
[393725031,1762954243435,-500.0,0.00037535,7]
[393725032,1762954243445,-800.0,0.00037535,7]
[393725033,1762954243455,-600.0,0.00037535,7]
[393725034,1762954243465,-500.0,0.00037558,30]
[393725035,1762954243474,-161.73,0.00037575,7]
[393725036,1762954243484,-156.35,0.00037612,60]
[393725037,1762954243495,-1000.0,0.00037621,5]
[393725038,1762954243505,-503.88116874,0.00037621,5]
[393725039,1762954243515,-375.87183361,0.00037634,30]
[393725040,1762954243525,-594.52466404,0.00037634,30]
[393725041,1762954243535,-153.59012997,0.00037644,30]
[393725042,1762954243545,-1096.71089,0.00037688,30]
[393725043,1762954243554,-150.0,0.00037691,60]
[393725044,1762954243564,-168.0,0.0003771,2]
[393725045,1762954243574,-200.0,0.00037754,2]
[393725046,1762954243583,-168.0,0.00037777,120]
[393725047,1762954243593,-150.0,0.00037828,60]
[393725048,1762954243603,-999.0,0.00037831,120]
[393725050,1762954243613,-500.0,0.00037832,30]
[393725053,1762954243631,-157.66,0.00037855,2]
[393725054,1762954243642,-1000.0,0.00037855,2]
[393725055,1762954243652,-1096.71089,0.00037888,30]
[393725056,1762954243662,-178.96,0.00037912,2]
[393725057,1762954243671,-166.66,0.00037924,2]
[393725058,1762954243679,-648.03571,0.0003795,2]
[393725059,1762954243688,-236.8751364,0.00037965,60]
[393725060,1762954243698,-274.53,0.00037976,2]
[393725061,1762954243707,-150.0,0.00038,5]
[393725062,1762954243716,-2000.0,0.00038,2]
[393725063,1762954243726,-1187.40772,0.00038,120]
[393725064,1762954243736,-300.0,0.00038,120]
[393725065,1762954243745,-204.24,0.00038005,9]
[393725066,1762954243754,-318.81715426,0.00038009,2]
[393725067,1762954243764,-375.87183361,0.00038034,30]
[393725068,1762954243774,-594.52466404,0.00038034,30]
[393725069,1762954243784,-153.59012997,0.00038055,30]
[393725070,1762954243794,-153.59012997,0.00038055,30]
[393725071,1762954243804,-1096.71089,0.00038088,30]
[393725072,1762954243814,-1516.85,0.000381,30]
[393725073,1762954243824,-3667.91740475,0.000381,33]
[393725074,1762954243833,-500.0,0.00038106,30]
[393725075,1762954243843,-504.15122996,0.00038168,5]
[393725076,1762954243853,-2000.0,0.00038178,120]
[393725077,1762954243862,-8746.62,0.000382,2]
[393725078,1762954243874,-500.0,0.00038208,30]
[393725079,1762954243885,-168.0,0.00038208,120]
[393725080,1762954243896,-150.0,0.00038221,7]
[393725081,1762954243908,-300.0,0.00038221,7]
[393725082,1762954243918,-227.0,0.00038229,2]
[393725083,1762954243927,-150.0,0.00038239,15]
[393725084,1762954243937,-150.0,0.00038239,120]
[393725085,1762954243948,-500.0,0.00038239,15]
[393725086,1762954243957,-288.0,0.00038287,30]
[393725087,1762954243967,-1096.71089,0.00038288,30]
[393725088,1762954243978,-1942.0,0.00038291,5]
[393725089,1762954243989,-152.0,0.00038305,4]
[393725090,1762954243998,-168.0,0.00038328,120]
[393725091,1762954244008,-296.929077,0.00038356,120]
[393725092,1762954244018,-296.929077,0.00038356,120]
[393725093,1762954244028,-296.929077,0.00038356,120]
[393725094,1762954244038,-296.929077,0.00038356,120]
[393725095,1762954244047,-800.0,0.00038357,7]
[393725096,1762954244057,-600.0,0.00038357,7]
[393725097,1762954244072,-150.0,0.00038376,15]
[393725098,1762954244081,-150.0,0.00038376,120]
[393725099,1762954244091,-600.0,0.00038376,15]
[393725100,1762954244102,-500.0,0.0003838,30]
[393725101,1762954244112,-170.27279701,0.00038412,2]
[393725102,1762954244122,-375.87183361,0.00038434,120]
[393725103,1762954244132,-594.52466404,0.00038434,120]
[393725104,1762954244145,-648.03572,0.0003845,2]
[393725105,1762954244154,-292.01543013,0.00038473,2]
[393725106,1762954244164,-1096.71089,0.00038488,30]
[393725107,1762954244174,-150.0,0.00038513,15]
[393725108,1762954244184,-150.0,0.00038513,120]
[393725109,1762954244194,-204.24,0.00038553,10]
[393725110,1762954244203,-168.0,0.00038564,7]
[393725111,1762954244212,-650.08614279,0.00038578,5]
[393725112,1762954244222,-284.7786349,0.00038583,7]
[393725113,1762954244231,-152.0,0.00038583,7]